bitfinex/quotes_BTCUSD_20240730
["timestamp","ask_amount","ask_price","bid_price","bid_amount"]
[1722299268511,0.07534716,66411.0,66410.0,0.85295004]
[1722299270012,0.09896705,66411.0,66410.0,0.85295004]
[1722299271242,0.09896705,66411.0,66410.0,0.61202304]
[1722299271678,0.07534716,66411.0,66410.0,0.61202304]
[1722299271881,0.07534716,66411.0,66410.0,0.85295004]
[1722299272299,0.07534716,66411.0,66410.0,0.61202304]
[1722299272696,0.07534716,66411.0,66410.0,0.85295004]
[1722299273300,0.07534716,66420.0,66410.0,0.85295004]
[1722299273301,0.07534716,66420.0,66419.0,0.361341]
[1722299273499,0.23175013,66420.0,66419.0,0.51197404]
[1722299276343,0.07534716,66420.0,66419.0,0.75286804]
[1722299276543,0.07534716,66420.0,66419.0,0.85286804]
[1722299278011,0.07534716,66420.0,66419.0,1.09376204]
[1722299279448,0.07534716,66420.0,66419.0,1.17876204]
[1722299279651,0.07534716,66420.0,66419.0,1.09376204]
[1722299279879,0.09896332,66420.0,66419.0,1.09376204]
[1722299280546,0.02361616,66420.0,66419.0,1.55485604]
[1722299281099,0.07534716,66427.0,66426.0,0.843041]
[1722299281297,0.07534716,66427.0,66426.0,1.11667404]
[1722299281501,0.07534716,66427.0,66426.0,0.27363304]
[1722299281899,0.07534716,66427.0,66426.0,0.28563304]
[1722299282099,0.07534716,66427.0,66426.0,0.27363304]
[1722299283714,0.00083,66428.0,66427.0,0.01]
[1722299283917,0.00083,66428.0,66427.0,0.27363304]
[1722299284122,0.00083,66428.0,66427.0,0.30390304]
[1722299284350,0.02444158,66428.0,66427.0,0.30390304]
[1722299284796,0.00083,66428.0,66427.0,0.30390304]
[1722299285031,0.00083,66428.0,66427.0,0.27363304]
[1722299285260,0.00083,66428.0,66427.0,0.30390304]
[1722299285474,0.00083,66428.0,66427.0,0.27363304]
[1722299285619,0.00083,66428.0,66427.0,0.28563304]
[1722299285942,0.00083,66428.0,66427.0,0.27363304]
[1722299286141,0.00083,66428.0,66427.0,0.30390304]
[1722299288065,0.00083,66428.0,66427.0,0.31590304]
[1722299288272,0.00083,66428.0,66427.0,0.44508617]
[1722299288475,0.00083,66428.0,66427.0,0.3942817]
[1722299289465,0.00083,66428.0,66427.0,0.3640117]
[1722299290025,0.07534716,66435.0,66427.0,0.3640117]
[1722299290026,0.05617716,66435.0,66427.0,0.3640117]
[1722299290226,0.05617716,66435.0,66430.0,0.15063304]
[1722299290652,0.05617716,66435.0,66431.0,0.123]
[1722299290835,0.05617716,66435.0,66432.0,0.15063304]
[1722299291031,0.05617716,66435.0,66433.0,0.123]
[1722299291212,0.05617716,66435.0,66434.0,0.15218724]
[1722299291414,0.21254012,66435.0,66434.0,0.25063304]
[1722299291658,0.23615166,66435.0,66434.0,0.15063304]
[1722299294694,0.23615166,66435.0,66426.0,0.000913]
[1722299294899,0.07534716,66427.0,66426.0,0.000913]
[1722299296114,0.33642133,66427.0,66426.0,0.000913]
[1722299296335,0.55232133,66427.0,66426.0,0.000913]
[1722299296520,0.63252133,66427.0,66426.0,0.000913]
[1722299298675,0.67669338,66427.0,66426.0,0.000913]
[1722299299304,0.93492427,66427.0,66426.0,0.000913]
[1722299299502,0.93492427,66427.0,66410.0,1.6091]
[1722299299503,0.2159,66420.0,66410.0,1.6091]
[1722299299656,0.07534716,66411.0,66410.0,1.6091]
[1722299299857,0.23172133,66411.0,66410.0,1.6091]
[1722299300979,0.34022133,66411.0,66410.0,1.6091]
[1722299301326,0.91798839,66411.0,66410.0,1.6091]
[1722299301539,1.02013372,66411.0,66410.0,1.6091]
[1722299301769,1.02013372,66411.0,66410.0,0.433]
[1722299301770,0.86820283,66411.0,66410.0,0.433]
[1722299301963,0.1072,66395.0,66382.0,0.44444115]
[1722299302111,0.2159,66389.0,66382.0,0.44444115]
[1722299302324,0.07534716,66391.0,66383.0,0.15063304]
[1722299302528,0.1564865,66390.0,66383.0,0.15063304]
[1722299302732,0.1072,66395.0,66383.0,0.15063304]
[1722299302986,0.15141744,66403.0,66383.0,0.15063304]
[1722299303185,0.15646905,66402.0,66385.0,0.0845]
[1722299303380,0.02362837,66393.0,66387.0,0.15063304]
[1722299303584,0.07534716,66396.0,66387.0,0.15063304]
[1722299303585,0.07334906,66396.0,66388.0,0.1]
[1722299303737,0.07334906,66396.0,66389.0,0.15063304]
[1722299304647,0.1072,66403.0,66389.0,0.15063304]
[1722299304879,0.07534716,66397.0,66389.0,0.15063304]
[1722299306315,0.07534716,66404.0,66390.0,0.2048]
[1722299306461,0.07534716,66404.0,66391.0,0.15063304]
[1722299306661,0.07534716,66397.0,66391.0,0.15063304]
[1722299308288,0.1021,66396.0,66383.0,0.1]
[1722299308462,0.07534716,66384.0,66379.0,0.000913]
[1722299309599,0.07534716,66384.0,66379.0,0.15154604]
[1722299310228,0.07534716,66384.0,66379.0,0.000913]
[1722299310398,0.10447188,66384.0,66379.0,0.000913]
[1722299310602,0.2159,66381.0,66379.0,0.000913]
[1722299311199,0.15652729,66380.0,66379.0,0.000913]
[1722299311404,0.15653262,66380.0,66379.0,0.000913]
[1722299311617,0.60259,66380.0,66379.0,0.000913]
[1722299311820,0.75912465,66380.0,66379.0,0.000913]
[1722299312163,0.15653465,66380.0,66379.0,0.000913]
[1722299312483,0.1046,66383.0,66379.0,0.000913]
[1722299313548,0.225112,66383.0,66379.0,0.000913]
[1722299313751,0.1046,66383.0,66379.0,0.000913]
[1722299314405,0.225114,66383.0,66379.0,0.000913]
[1722299314751,0.12823389,66383.0,66379.0,0.000913]
[1722299315158,0.120516,66381.0,66379.0,0.000913]
[1722299315405,0.24874689,66383.0,66379.0,0.000913]
[1722299315538,0.27703654,66382.0,66379.0,0.000913]
[1722299315721,0.120514,66382.0,66379.0,0.000913]
[1722299315919,0.15652497,66381.0,66379.0,0.000913]
[1722299316123,0.120515,66382.0,66379.0,0.000913]
[1722299316327,0.12823389,66383.0,66379.0,0.000913]
[1722299316531,0.120516,66381.0,66379.0,0.000913]
[1722299316736,0.12823389,66383.0,66379.0,0.000913]
[1722299318217,0.24874689,66383.0,66379.0,0.000913]
[1722299318414,0.12823389,66383.0,66379.0,0.000913]
[1722299318857,0.24874689,66383.0,66379.0,0.000913]
[1722299319085,0.225113,66383.0,66379.0,0.000913]
[1722299319274,0.120516,66382.0,66379.0,0.000913]
[1722299319477,0.15651322,66382.0,66379.0,0.000913]
[1722299319642,0.23836246,66382.0,66379.0,0.000913]
[1722299319952,0.15651322,66381.0,66379.0,0.000913]
[1722299320181,0.1046,66383.0,66379.0,0.000913]
[1722299320353,0.15651388,66382.0,66379.0,0.000913]
[1722299320558,0.19584916,66389.0,66382.0,0.120514]
[1722299320559,0.07534716,66389.0,66382.0,0.120514]
[1722299320766,0.15650164,66388.0,66383.0,0.27269824]
[1722299320968,0.15650164,66388.0,66383.0,0.15218724]
[1722299321236,0.07534716,66389.0,66383.0,0.27114504]
[1722299321437,0.07534716,66389.0,66384.0,0.0015542]
[1722299321662,0.15649116,66388.0,66387.0,0.120505]
[1722299321866,0.07534716,66397.0,66387.0,0.15063304]
[1722299322167,0.15648001,66396.0,66390.0,0.120499]
[1722299322366,0.05698233,66395.0,66391.0,0.1220522]
[1722299322569,0.15648001,66394.0,66391.0,0.0015542]
[1722299322870,0.105,66406.0,66393.0,0.0877]
[1722299323067,0.15644546,66405.0,66404.0,0.120474]
[1722299323211,0.105,66416.0,66404.0,0.120474]
[1722299323212,0.105,66416.0,66404.0,0.15063304]
[1722299323413,0.15643082,66415.0,66406.0,0.0869]
[1722299323574,0.1,66424.0,66407.0,0.15063304]
[1722299323783,0.07534716,66420.0,66408.0,0.1]
[1722299324116,0.07534716,66413.0,66409.0,0.15063304]
[1722299324279,0.07534716,66413.0,66396.0,0.00894875]
[1722299324280,0.49904831,66412.0,66399.0,0.0878]
[1722299324474,0.49904831,66412.0,66399.0,0.208283]
[1722299324475,0.07534716,66400.0,66399.0,0.208283]
[1722299324675,0.07534716,66400.0,66395.0,0.1]
[1722299324901,0.07534716,66400.0,66391.0,0.120497]
[1722299324902,0.15645504,66399.0,66391.0,0.120497]
[1722299325105,0.07534716,66392.0,66390.0,0.0878]
[1722299325321,0.07534716,66392.0,66386.0,0.241014]
[1722299325491,0.241,66390.0,66371.0,0.1079]
[1722299325905,0.07534716,66392.0,66388.0,0.120503]
[1722299325906,0.15647046,66389.0,66388.0,0.120503]
[1722299326125,0.07534716,66392.0,66390.0,0.241]
[1722299326346,0.15647686,66391.0,66386.0,0.241013]
[1722299326528,0.15647686,66391.0,66388.0,0.120503]
[1722299326731,0.023629,66390.0,66388.0,0.120503]
[1722299326982,0.023629,66390.0,66389.0,0.602507]
[1722299327190,0.07534716,66392.0,66391.0,0.120498]
[1722299327395,0.07534716,66400.0,66394.0,0.240982]
[1722299327573,0.15646613,66399.0,66395.0,0.12049]
[1722299327781,0.15646613,66399.0,66394.0,0.51210604]
[1722299327911,0.15646613,66399.0,66394.0,0.15063304]
[1722299328115,0.15646613,66399.0,66381.0,0.1]
[1722299328116,0.15646613,66399.0,66398.0,0.120485]
[1722299328347,0.15646613,66399.0,66398.0,0.75306004]
[1722299328546,0.15646613,66399.0,66398.0,0.99403104]
[1722299328750,0.07534716,66413.0,66398.0,0.15063304]
[1722299328957,0.07534716,66404.0,66403.0,0.361428]
[1722299329169,0.07534716,66404.0,66395.0,0.089]
[1722299329170,0.08288188,66404.0,66398.0,0.120484]
[1722299329370,0.15644117,66403.0,66398.0,0.120484]
[1722299329569,0.15644117,66403.0,66397.0,0.240974]
[1722299329787,0.15644117,66403.0,66400.0,0.120481]
[1722299330334,0.15644117,66403.0,66402.0,0.120478]
[1722299330543,0.15644117,66403.0,66402.0,0.361434]
[1722299330693,0.16844117,66403.0,66402.0,0.75302304]
[1722299331094,0.15644117,66403.0,66402.0,0.75302304]
[1722299331317,0.16544117,66403.0,66402.0,0.75302304]
[1722299331878,0.16544117,66403.0,66402.0,0.75502304]
[1722299331879,0.17544117,66403.0,66402.0,0.75502304]
[1722299332167,0.028,66403.0,66402.0,1.42473504]
[1722299332522,0.028,66403.0,66402.0,1.54773504]
[1722299333154,0.019,66403.0,66402.0,1.54773504]
[1722299333375,0.01,66403.0,66402.0,1.54673504]
[1722299333719,0.001,66403.0,66402.0,1.55873504]
[1722299333900,0.07534716,66420.0,66419.0,0.120447]
[1722299334055,0.23174782,66420.0,66419.0,0.120447]
[1722299334269,0.23174782,66420.0,66419.0,0.361341]
[1722299334688,0.07534716,66420.0,66419.0,0.361341]
[1722299334888,0.07534716,66420.0,66419.0,0.602235]
[1722299335095,0.07534716,66420.0,66419.0,0.361341]
[1722299335451,0.23674673,66420.0,66419.0,0.361341]
[1722299335653,0.08034716,66420.0,66419.0,0.361341]
[1722299335864,0.08734716,66420.0,66419.0,0.001]
[1722299336647,0.1109661,66420.0,66419.0,0.121447]
[1722299336851,0.1109661,66420.0,66419.0,0.59407404]
[1722299337051,0.1109661,66420.0,66419.0,0.83496804]
[1722299337482,0.1109661,66420.0,66419.0,1.07586204]
[1722299337612,0.1059661,66420.0,66419.0,1.07586204]
[1722299337811,0.08234716,66420.0,66419.0,1.07586204]
[1722299338018,0.08734716,66420.0,66419.0,1.07586204]
[1722299338430,0.08734716,66420.0,66419.0,1.07886204]
[1722299338859,0.08734716,66420.0,66419.0,1.07586204]
[1722299338860,0.08234716,66420.0,66419.0,1.07586204]
[1722299339061,0.08234716,66420.0,66419.0,1.07786204]
[1722299339843,0.07534716,66420.0,66419.0,1.07686204]
[1722299340553,0.08034716,66420.0,66419.0,1.07686204]
[1722299340754,0.08034716,66420.0,66419.0,1.18086204]
[1722299340966,0.0989633,66420.0,66419.0,0.33773304]
[1722299341162,0.0989633,66420.0,66419.0,0.37708004]
[1722299341369,0.07534716,66420.0,66419.0,0.61997404]
[1722299341707,0.07534716,66420.0,66419.0,0.61397404]
[1722299341914,0.07634716,66420.0,66419.0,0.62297404]
[1722299342119,0.07534716,66420.0,66419.0,0.61397404]
[1722299342455,0.08134716,66420.0,66419.0,0.61497404]
[1722299342657,0.08134716,66420.0,66419.0,0.37408004]
[1722299342858,0.08134716,66420.0,66419.0,0.37208004]
[1722299343087,0.08134716,66420.0,66419.0,0.85386804]
[1722299343088,0.006,66420.0,66419.0,0.85386804]
[1722299343298,0.006,66420.0,66419.0,1.09476204]
[1722299343509,0.006,66420.0,66419.0,1.22586204]
[1722299343978,0.006,66420.0,66419.0,1.54925604]
[1722299344180,0.02961567,66420.0,66419.0,1.54925604]
[1722299344404,0.008,66420.0,66419.0,1.54925604]
[1722299344834,0.008,66420.0,66419.0,1.57952604]
[1722299344835,0.0316144,66420.0,66419.0,1.57952604]
[1722299345044,0.0316144,66420.0,66419.0,1.54925604]
[1722299345478,0.0316144,66420.0,66419.0,1.80215004]
[1722299345680,0.0316144,66420.0,66419.0,1.54925604]
[1722299345880,0.006,66420.0,66419.0,1.54925604]
[1722299346109,0.006,66420.0,66419.0,1.57952604]
[1722299346224,0.07534716,66427.0,66426.0,1.11418]
[1722299346433,0.07534716,66427.0,66426.0,1.36481304]
[1722299346642,0.07534716,66427.0,66426.0,1.38781304]
[1722299348389,0.07534716,66427.0,66426.0,1.36631429]
[1722299348597,0.05617716,66435.0,66434.0,0.84294]
[1722299348810,0.05617716,66435.0,66434.0,1.09357304]
[1722299349155,0.07978916,66435.0,66434.0,1.09357304]
[1722299351300,0.07978916,66435.0,66434.0,0.86673304]
[1722299351747,0.05617716,66435.0,66434.0,0.85273304]
[1722299351886,0.05617716,66435.0,66434.0,0.86573304]
[1722299352243,0.05617716,66435.0,66434.0,0.85273304]
[1722299352451,0.05617716,66435.0,66434.0,0.86673304]
[1722299352855,0.05617716,66435.0,66434.0,0.85273304]
[1722299353225,0.05617716,66435.0,66434.0,1.09357304]
[1722299353838,0.05617716,66435.0,66434.0,0.85273304]
[1722299354155,0.05717716,66435.0,66434.0,0.86573304]
[1722299354310,0.05617716,66435.0,66434.0,0.85273304]
[1722299354722,0.08078913,66435.0,66434.0,1.10757304]
[1722299354948,0.08078913,66435.0,66434.0,1.09357304]
[1722299355143,0.08161913,66435.0,66434.0,1.09357304]
[1722299355372,0.05800716,66435.0,66434.0,1.09357304]
[1722299355598,0.00183,66435.0,66434.0,1.11657304]
[1722299355796,0.00183,66435.0,66434.0,1.29827304]
[1722299356204,0.00183,66435.0,66434.0,1.18197433]
[1722299356343,0.00183,66435.0,66434.0,1.20497433]
[1722299357937,0.00183,66435.0,66434.0,1.21797433]
[1722299358152,0.00283,66435.0,66434.0,1.21797433]
[1722299358317,0.00283,66435.0,66434.0,0.95413433]
[1722299358480,0.02644001,66435.0,66434.0,0.96413433]
[1722299358693,0.02744001,66435.0,66434.0,0.40295433]
[1722299358898,0.02744001,66435.0,66434.0,0.88463433]
[1722299358899,0.00383,66435.0,66434.0,0.88463433]
[1722299359094,0.00283,66435.0,66434.0,0.87463433]
[1722299359298,0.00283,66435.0,66434.0,1.10247433]
[1722299359299,0.00083,66435.0,66434.0,1.10247433]
[1722299359504,0.00183,66435.0,66434.0,1.12847433]
[1722299359696,0.00283,66435.0,66434.0,1.12847433]
[1722299359952,0.00283,66435.0,66434.0,1.10247433]
[1722299359953,0.00183,66435.0,66434.0,1.10247433]
[1722299360128,0.00183,66435.0,66434.0,1.13847433]
[1722299360293,0.00283,66435.0,66434.0,1.13847433]
[1722299360496,0.00183,66435.0,66434.0,1.12547433]
[1722299360697,0.00383,66435.0,66434.0,1.14247433]
[1722299362133,0.02644062,66435.0,66434.0,1.13247433]
[1722299362384,0.02744062,66435.0,66434.0,1.14447433]
[1722299362557,0.00383,66435.0,66434.0,1.14447433]
[1722299362760,0.00383,66435.0,66434.0,1.23437433]
[1722299362996,0.00283,66435.0,66434.0,1.23437433]
[1722299363311,0.00183,66435.0,66434.0,1.23837433]
[1722299363629,0.00183,66435.0,66434.0,1.13647433]
[1722299364192,0.00183,66435.0,66434.0,1.11347433]
[1722299364639,0.00283,66435.0,66434.0,1.12747433]
[1722299364850,0.15816965,66435.0,66434.0,1.11347433]
[1722299365050,0.15816965,66435.0,66434.0,1.13647433]
[1722299365884,0.00183,66435.0,66434.0,1.13647433]
[1722299366077,0.02544094,66435.0,66434.0,1.13647433]
[1722299366198,0.1817816,66435.0,66434.0,1.13647433]
[1722299366405,0.15817066,66435.0,66434.0,1.13647433]
[1722299366607,0.15917066,66435.0,66434.0,1.15047433]
[1722299369577,0.18278126,66435.0,66434.0,1.15047433]
[1722299370321,0.15917066,66435.0,66434.0,1.19317728]
[1722299370455,0.15917066,66435.0,66434.0,1.15047433]
[1722299370654,0.15917066,66435.0,66434.0,1.39131433]
[1722299371281,0.15917066,66435.0,66434.0,1.43401728]
[1722299371779,0.15917066,66435.0,66434.0,1.15047433]
[1722299372284,0.15917066,66435.0,66434.0,1.39131433]
[1722299373292,0.18278099,66435.0,66434.0,1.39131433]
[1722299374716,0.18278099,66435.0,66434.0,1.40331433]
[1722299374717,0.15917066,66435.0,66434.0,1.40331433]
[1722299375400,0.15917066,66435.0,66434.0,1.48901433]
[1722299375825,0.13611824,66435.0,66434.0,1.48901433]
[1722299376019,0.07534716,66442.0,66441.0,1.083667]
[1722299376154,0.07534716,66442.0,66441.0,1.35730004]
[1722299377085,0.07534716,66442.0,66441.0,1.36030004]
[1722299377493,0.07534716,66442.0,66441.0,1.09648504]
[1722299377705,0.07534716,66442.0,66441.0,0.85267004]
[1722299377899,0.0989558,66442.0,66441.0,0.85667004]
[1722299378105,0.0989558,66442.0,66441.0,0.004]
[1722299378106,0.2906251,66442.0,66441.0,0.004]
[1722299378315,1.3702302,66442.0,66441.0,0.0011]
[1722299378526,2.15750945,66442.0,66441.0,0.0011]
[1722299378756,2.21703171,66442.0,66441.0,0.0011]
[1722299378963,2.21700547,66442.0,66441.0,0.0011]
[1722299379164,2.19268028,66442.0,66441.0,0.0011]
[1722299379438,2.43349128,66442.0,66441.0,0.0011]
[1722299379642,2.43349128,66442.0,66423.0,0.44444115]
[1722299379643,0.1063,66431.0,66423.0,0.44444115]
[1722299379846,0.07534716,66424.0,66423.0,0.44444115]
[1722299380164,0.14185765,66424.0,66421.0,0.120442]
[1722299380370,0.04433512,66422.0,66411.0,0.00889779]
[1722299380521,0.07534716,66424.0,66421.0,0.15063304]
[1722299380723,0.07534716,66424.0,66423.0,0.36132]
[1722299380899,0.07534716,66424.0,66423.0,0.6022]
[1722299381527,0.11970021,66424.0,66423.0,0.6022]
[1722299381734,0.07534716,66424.0,66423.0,0.6022]
[1722299382327,0.09896405,66424.0,66423.0,0.36132]
[1722299382586,0.09896405,66424.0,66423.0,0.12044]
[1722299382771,0.09896405,66424.0,66423.0,0.36232]
[1722299383298,0.09896405,66424.0,66423.0,0.36132]
[1722299383483,0.14331574,66424.0,66423.0,0.99471304]
[1722299383647,0.09896405,66424.0,66423.0,0.99471304]
[1722299384028,0.09896405,66424.0,66423.0,0.75283304]
[1722299384372,0.14331551,66424.0,66423.0,0.75283304]
[1722299384603,0.09896405,66424.0,66423.0,0.99371304]
[1722299384816,0.09896405,66424.0,66423.0,0.99471304]
[1722299385260,0.09896405,66424.0,66423.0,0.99371304]
[1722299385403,0.09896405,66424.0,66423.0,0.99571304]
[1722299385606,0.09896405,66424.0,66423.0,0.99371304]
[1722299386146,0.09896405,66424.0,66423.0,0.99871304]
[1722299386560,0.07734716,66424.0,66423.0,0.99871304]
[1722299386704,0.07734716,66424.0,66423.0,0.75783304]
[1722299386888,0.07534716,66424.0,66423.0,0.75783304]
[1722299387321,0.07534716,66424.0,66423.0,0.51895304]
[1722299387541,1.19060817,66424.0,66423.0,0.007]
[1722299387744,1.19060817,66424.0,66420.0,0.000913]
[1722299387745,0.632217,66421.0,66420.0,0.000913]
[1722299387954,0.1004,66412.0,66401.0,0.44444115]
[1722299388157,0.1004,66412.0,66401.0,0.56492115]
[1722299388158,0.14185325,66402.0,66401.0,0.56492115]
[1722299388400,0.11965368,66402.0,66401.0,0.12048]
[1722299388608,0.07534716,66402.0,66401.0,0.36144]
[1722299388818,0.11965395,66402.0,66401.0,0.36144]
[1722299389232,0.11965395,66402.0,66401.0,0.36244]
[1722299389456,0.09897058,66402.0,66401.0,0.36244]
[1722299390094,0.21905395,66402.0,66401.0,0.001]
[1722299390294,0.17474716,66402.0,66401.0,0.001]
[1722299390732,0.17474716,66402.0,66401.0,0.12048]
[1722299390733,0.14365665,66402.0,66401.0,0.12048]
[1722299390860,0.17474716,66402.0,66396.0,0.000913]
[1722299391068,0.17474716,66402.0,66397.0,0.120487]
[1722299391069,0.02953907,66401.0,66397.0,0.120487]
[1722299391270,0.02953907,66401.0,66396.0,0.000913]
[1722299391271,0.04425665,66401.0,66396.0,0.000913]
[1722299391472,0.17474716,66402.0,66396.0,0.000913]
[1722299391789,0.17874716,66402.0,66396.0,0.000913]
[1722299391992,0.17474716,66402.0,66396.0,0.000913]
[1722299392200,0.04679907,66401.0,66396.0,0.000913]
[1722299392377,0.003,66401.0,66397.0,0.240974]
[1722299392595,0.003,66401.0,66400.0,0.00121794]
[1722299392798,0.003,66401.0,66400.0,0.361444]
[1722299393390,0.02662518,66401.0,66400.0,0.361444]
[1722299394189,0.02362518,66401.0,66400.0,0.361444]
[1722299394390,0.02362518,66401.0,66400.0,0.602407]
[1722299394636,0.02662518,66401.0,66400.0,0.602407]
[1722299394846,0.03162518,66401.0,66400.0,0.602407]
[1722299395963,0.10697234,66401.0,66400.0,0.602407]
[1722299397142,0.03162518,66401.0,66400.0,0.99400304]
[1722299397642,0.008,66401.0,66400.0,0.99400304]
[1722299398019,0.003,66401.0,66400.0,0.99400304]
[1722299398442,0.005,66401.0,66400.0,1.72509904]
[1722299398653,0.00294001,66401.0,66400.0,1.7401939]
[1722299398859,0.001,66401.0,66400.0,1.7401939]
[1722299399066,0.001,66401.0,66400.0,1.7301939]
[1722299399269,0.001,66401.0,66400.0,1.2180979]
[1722299399476,0.001,66401.0,66400.0,1.1950979]
[1722299399894,0.001,66401.0,66400.0,1.1990979]
[1722299400980,0.001,66401.0,66400.0,1.00400304]
[1722299401185,0.001,66401.0,66400.0,1.00000304]
[1722299401403,0.002,66401.0,66400.0,1.10600304]
[1722299401610,0.002,66401.0,66400.0,1.41213604]
[1722299401817,0.07534716,66416.0,66415.0,0.602272]
[1722299402022,0.07534716,66416.0,66415.0,0.75290504]
[1722299402890,0.07534716,66416.0,66415.0,0.120454]
[1722299403108,0.07534716,66416.0,66408.0,0.240933]
[1722299403325,0.07534716,66409.0,66400.0,0.006]
[1722299403539,0.26502397,66408.0,66407.0,0.68537915]
[1722299403764,0.07534716,66416.0,66415.0,0.361363]
[1722299403765,0.18394716,66416.0,66415.0,0.361363]
[1722299404016,0.34037003,66416.0,66415.0,0.361363]
[1722299404213,0.07534716,66416.0,66415.0,0.843181]
[1722299404420,0.07534716,66416.0,66415.0,0.602272]
[1722299405059,0.07534716,66416.0,66415.0,0.843181]
[1722299405271,0.02361954,66416.0,66415.0,0.75590504]
[1722299405478,0.02361954,66416.0,66415.0,0.99681404]
[1722299405479,0.02761954,66416.0,66415.0,0.99681404]
[1722299405687,0.004,66416.0,66415.0,1.07601404]
[1722299405901,0.1086,66429.0,66423.0,0.36132]
[1722299406138,0.1086,66429.0,66423.0,0.6022]
[1722299406347,0.15639433,66428.0,66423.0,0.99371304]
[1722299406571,0.1086,66429.0,66423.0,0.99371304]
[1722299406572,0.15639106,66427.0,66423.0,0.99371304]
[1722299406774,0.15639106,66426.0,66423.0,0.99371304]
[1722299406973,0.23173822,66424.0,66423.0,0.99371304]
[1722299407179,0.23173822,66424.0,66423.0,0.75283304]
[1722299407811,0.07534716,66424.0,66423.0,0.75283304]
[1722299408049,0.07534716,66424.0,66423.0,0.99371304]
[1722299408470,0.07534716,66424.0,66423.0,0.75283304]
[1722299408693,0.08134716,66424.0,66423.0,0.75383304]
[1722299408891,0.08134716,66424.0,66423.0,0.99471304]
[1722299408892,0.11096291,66424.0,66423.0,0.99471304]
[1722299409099,0.08134716,66424.0,66423.0,0.99371304]
[1722299409504,0.08734716,66424.0,66423.0,0.99471304]
[1722299409704,0.08734716,66424.0,66423.0,0.75383304]
[1722299410347,0.08734716,66424.0,66423.0,0.6032]
[1722299410547,0.24873643,66424.0,66423.0,0.36232]
[1722299410924,0.24873643,66424.0,66423.0,0.6032]
[1722299411156,0.24873643,66424.0,66423.0,0.75383304]
[1722299411383,0.24873643,66424.0,66423.0,0.36232]
[1722299412778,0.24873643,66424.0,66423.0,0.6032]
[1722299412982,0.24873643,66424.0,66423.0,0.36232]
[1722299413182,0.24873643,66424.0,66423.0,0.6032]
[1722299413411,0.24873643,66424.0,66423.0,0.75383304]
[1722299414009,0.09234716,66424.0,66423.0,0.75383304]
[1722299415174,0.24872861,66424.0,66423.0,0.75383304]
[1722299415585,0.09234716,66424.0,66423.0,0.75383304]
[1722299416802,0.11596314,66424.0,66423.0,0.75383304]
[1722299417003,0.14319783,66424.0,66423.0,0.12144]
[1722299417198,0.11596314,66424.0,66423.0,0.12144]
[1722299417457,0.11596314,66424.0,66423.0,0.36232]
[1722299417690,0.27234691,66424.0,66423.0,0.6032]
[1722299418535,0.27234691,66424.0,66423.0,0.36232]
[1722299418752,0.27234691,66424.0,66423.0,0.12144]
[1722299418953,0.30400384,66424.0,66423.0,0.001]
[1722299419351,0.24873093,66424.0,66423.0,0.36232]
[1722299419566,0.24873093,66424.0,66423.0,0.6032]
[1722299419778,0.24873093,66424.0,66423.0,1.07681304]
[1722299419779,0.17338377,66424.0,66423.0,1.07681304]
[1722299419977,0.017,66424.0,66423.0,1.07681304]
[1722299420892,0.01783,66424.0,66423.0,1.07681304]
[1722299421097,0.01783,66424.0,66423.0,1.51919304]
[1722299421324,0.01783,66424.0,66423.0,1.54219304]
[1722299421516,0.01783,66424.0,66423.0,1.57236304]
[1722299421888,0.01183,66424.0,66423.0,1.57136304]
[1722299422247,0.03544369,66424.0,66423.0,1.78207304]
[1722299422478,0.02444369,66424.0,66423.0,1.78407304]
[1722299422637,0.46989059,66430.0,66429.0,1.197631]
[1722299422851,0.46989059,66430.0,66429.0,1.76825204]
[1722299422852,0.34229726,66430.0,66429.0,1.76825204]
[1722299423115,0.34229726,66430.0,66429.0,1.79125204]
[1722299423514,0.34229726,66430.0,66429.0,1.55039404]
[1722299423721,0.34229726,66430.0,66429.0,1.82142204]
[1722299424142,0.34329726,66430.0,66429.0,1.83142204]
[1722299424545,0.34229726,66430.0,66429.0,1.82142204]
[1722299424749,0.34229726,66430.0,66429.0,1.58056404]
[1722299425006,0.34329726,66430.0,66429.0,1.59456404]
[1722299426214,0.34329726,66430.0,66429.0,1.56439404]
[1722299426633,0.34429726,66430.0,66429.0,1.57739404]
[1722299426838,0.34329726,66430.0,66429.0,1.56339404]
[1722299427242,0.34429726,66430.0,66429.0,1.61659152]
[1722299427394,0.29396434,66430.0,66429.0,1.61659152]
[1722299427603,0.29296434,66430.0,66429.0,1.85344952]
[1722299427801,0.29196434,66430.0,66429.0,1.84244952]
[1722299428045,0.29296434,66430.0,66429.0,1.85644952]
[1722299428397,0.29396434,66430.0,66429.0,1.87044952]
[1722299428631,0.23117369,66430.0,66429.0,1.85644952]
[1722299428824,0.23117369,66430.0,66429.0,1.87044952]
[1722299428825,0.23217369,66430.0,66429.0,1.87044952]
[1722299429222,0.23117369,66430.0,66429.0,1.85644952]
[1722299429423,0.00849,66451.0,66449.0,0.842751]
[1722299429579,0.00849,66451.0,66449.0,0.99338404]
[1722299430602,0.00849,66451.0,66449.0,1.23417004]
[1722299430812,0.00849,66451.0,66449.0,1.51787004]
[1722299431019,0.00849,66451.0,66449.0,1.54087004]
[1722299431241,0.0167523,66450.0,66449.0,1.54087004]
[1722299431686,0.0167523,66450.0,66449.0,1.57104004]
[1722299432313,0.0167523,66450.0,66449.0,1.58009497]
[1722299432314,0.0147523,66450.0,66449.0,1.58009497]
[1722299432750,0.0147523,66450.0,66449.0,1.58809497]
[1722299433173,0.0147523,66450.0,66449.0,1.58009497]
[1722299433382,0.0147523,66450.0,66449.0,1.46242497]
[1722299433628,0.0147523,66450.0,66449.0,1.38022497]
[1722299433966,0.03835617,66450.0,66449.0,1.38022497]
[1722299434119,0.0147523,66450.0,66449.0,1.38022497]
[1722299434298,0.0147523,66450.0,66449.0,1.36622497]
[1722299434511,0.0147523,66450.0,66437.0,0.0858]
[1722299434711,0.0147523,66450.0,66437.0,0.120414]
[1722299434712,0.07534716,66438.0,66437.0,0.120414]
[1722299434982,0.07534716,66438.0,66437.0,0.361243]
[1722299435310,0.07534716,66438.0,66437.0,0.842901]
[1722299435512,0.07534716,66445.0,66444.0,0.60201]
[1722299435722,0.07534716,66445.0,66444.0,0.99344704]
[1722299436326,0.0147523,66450.0,66449.0,0.601965]
[1722299436531,0.0147523,66450.0,66449.0,0.99338404]
[1722299437862,0.0147523,66450.0,66449.0,1.09338404]
[1722299438830,0.0147523,66450.0,66449.0,1.10038404]
[1722299439042,0.0147523,66450.0,66449.0,1.09838404]
[1722299439368,0.0147523,66450.0,66449.0,1.10438404]